[Event "Early-Titled-Tuesday-Blitz-July-09-2024"]
[Site "Chess.com"]
[Date "2024.07.09"]
[Round "4"]
[White "pinguino120"]
[Black "elgrona"]
[Result "0-1"]
[WhiteElo "2314"]
[BlackElo "2098"]
[TimeControl "180+1"]
[EndTime "8:44:40 PDT"]
[Termination "elgrona won by resignation"]

1. Nf3 {[%clk 0:03:00.9]} 1... g6 {[%clk 0:02:58.8]} 2. g3 {[%clk 0:02:59.4]}
2... Bg7 {[%clk 0:02:59.5]} 3. Bg2 {[%clk 0:02:59.7]} 3... Nf6 {[%clk
0:02:58.9]} 4. O-O {[%clk 0:02:59.7]} 4... O-O {[%clk 0:02:59.7]} 5. d3 {[%clk
0:02:55.6]} 5... d6 {[%clk 0:02:58.4]} 6. e4 {[%clk 0:02:54.1]} 6... e5 {[%clk
0:02:55.1]} 7. Nc3 {[%clk 0:02:48]} 7... Nc6 {[%clk 0:02:54.6]} 8. d4 {[%clk
0:02:45.7]} 8... exd4 {[%clk 0:02:52.2]} 9. Nxd4 {[%clk 0:02:46.5]} 9... Bd7
{[%clk 0:02:49.3]} 10. Nxc6 {[%clk 0:02:43.5]} 10... bxc6 {[%clk 0:02:49.9]} 11.
h3 {[%clk 0:02:41.2]} 11... Rb8 {[%clk 0:02:45.2]} 12. Kh2 {[%clk 0:02:39.3]}
12... Re8 {[%clk 0:02:45.3]} 13. Rb1 {[%clk 0:02:37.2]} 13... Qc8 {[%clk
0:02:31.6]} 14. Be3 {[%clk 0:02:35.4]} 14... Qa6 {[%clk 0:02:18.4]} 15. f4
{[%clk 0:02:31]} 15... Qa5 {[%clk 0:02:01.1]} 16. Qd2 {[%clk 0:02:02.1]} 16...
Qh5 {[%clk 0:01:58.7]} 17. Bxa7 {[%clk 0:00:49.7]} 17... c5 {[%clk 0:01:37.2]}
18. Bxb8 {[%clk 0:00:49.1]} 18... Rxb8 {[%clk 0:01:25.9]} 19. Nd5 {[%clk
0:00:47.7]} 19... Ng4+ {[%clk 0:00:50.1]} 20. Kg1 {[%clk 0:00:46.1]} 20... Bd4+
{[%clk 0:00:46.7]} 21. Kh1 {[%clk 0:00:45.5]} 21... Re8 {[%clk 0:00:44.7]} 22.
c3 {[%clk 0:00:39.4]} 22... Bg7 {[%clk 0:00:36.5]} 23. Kg1 {[%clk 0:00:38.9]}
23... Nf6 {[%clk 0:00:31]} 24. Nxf6+ {[%clk 0:00:38.1]} 24... Bxf6 {[%clk
0:00:31.7]} 25. Kh2 {[%clk 0:00:36.6]} 25... g5 {[%clk 0:00:25.1]} 26. e5 {[%clk
0:00:33.7]} 26... Be7 {[%clk 0:00:21.8]} 27. f5 {[%clk 0:00:24]} 27... Bb5
{[%clk 0:00:16.5]} 28. g4 {[%clk 0:00:23]} 28... Qh4 {[%clk 0:00:15.7]} 29. Qf2
{[%clk 0:00:22.5]} 29... Bxf1 {[%clk 0:00:15]} 30. Qxh4 {[%clk 0:00:16.8]} 30...
gxh4 {[%clk 0:00:15.9]} 31. Rxf1 {[%clk 0:00:16.1]} 31... dxe5 {[%clk
0:00:16.2]} 32. a4 {[%clk 0:00:15.1]} 32... Bd6 {[%clk 0:00:14.6]} 33. Be4
{[%clk 0:00:14]} 33... Rb8 {[%clk 0:00:14.7]} 34. Rf2 {[%clk 0:00:11.9]} 34...
c4 {[%clk 0:00:15.1]} 35. a5 {[%clk 0:00:10.7]} 35... Bc5 {[%clk 0:00:15.2]} 36.
Re2 {[%clk 0:00:11]} 36... f6 {[%clk 0:00:14.9]} 37. Rd2 {[%clk 0:00:11.3]}
37... Kf8 {[%clk 0:00:15.4]} 38. Kg2 {[%clk 0:00:09.2]} 38... Ke7 {[%clk
0:00:15.6]} 39. Kf3 {[%clk 0:00:09.6]} 39... h6 {[%clk 0:00:15.8]} 40. a6 {[%clk
0:00:08.7]} 40... Rb6 {[%clk 0:00:15.3]} 41. Bb7 {[%clk 0:00:08.4]} 41... Rb3
{[%clk 0:00:14.5]} 42. Ke4 {[%clk 0:00:06.4]} 42... Bb6 {[%clk 0:00:14.9]} 43.
Kd5 {[%clk 0:00:06.4]} 43... Rb5+ {[%clk 0:00:10.8]} 44. Kxc4 {[%clk 0:00:06.6]}
44... Rc5+ {[%clk 0:00:10.2]} 45. Kd3 {[%clk 0:00:05.4]} 45... c6 {[%clk
0:00:06.6]} 46. b4 {[%clk 0:00:05.9]} 46... Rd5+ {[%clk 0:00:06.2]} 47. Ke2
{[%clk 0:00:06.5]} 47... Rxd2+ {[%clk 0:00:06.1]} 48. Kxd2 {[%clk 0:00:07.4]}
48... Kd6 {[%clk 0:00:06]} 49. Kd3 {[%clk 0:00:08]} 49... c5 {[%clk 0:00:06.6]}
50. b5 {[%clk 0:00:08.1]} 50... Ba5 {[%clk 0:00:06]} 51. c4 {[%clk 0:00:08.4]}
51... Bb6 {[%clk 0:00:06.2]} 52. Ke4 {[%clk 0:00:08.8]} 52... Ba5 {[%clk
0:00:06.5]} 53. Bd5 {[%clk 0:00:08.7]} 53... Bb6 {[%clk 0:00:06.6]} 54. Be6
{[%clk 0:00:09.2]} 54... Ba7 {[%clk 0:00:06.8]} 55. Kd3 {[%clk 0:00:08.5]} 55...
Bb6 {[%clk 0:00:07.2]} 56. Bd5 {[%clk 0:00:09.1]} 56... Ba7 {[%clk 0:00:07.5]}
57. Kc3 {[%clk 0:00:09.8]} 57... Bb6 {[%clk 0:00:07.6]} 58. Kb3 {[%clk
0:00:10.7]} 58... Kc7 {[%clk 0:00:06.9]} 59. Ka4 {[%clk 0:00:11.6]} 59... Ba7
{[%clk 0:00:07.3]} 60. Bc6 {[%clk 0:00:10.4]} 60... Kb6 {[%clk 0:00:06.8]} 61.
Kb3 {[%clk 0:00:09.7]} 61... Kc7 {[%clk 0:00:06.9]} 62. Kc3 {[%clk 0:00:10.2]}
62... Kd6 {[%clk 0:00:07.3]} 63. Kd3 {[%clk 0:00:11.1]} 63... Bb6 {[%clk
0:00:07.2]} 64. Ke4 {[%clk 0:00:12]} 64... Ba5 {[%clk 0:00:07.4]} 65. Kf3 {[%clk
0:00:12.2]} 65... Bb6 {[%clk 0:00:07.7]} 66. g5 {[%clk 0:00:12.7]} 66... hxg5
{[%clk 0:00:07]} 67. Kg4 {[%clk 0:00:13.3]} 67... Ke7 {[%clk 0:00:07.2]} 68. Kh5
{[%clk 0:00:13.8]} 68... Ba7 {[%clk 0:00:07.5]} 69. Kg6 {[%clk 0:00:13.6]} 69...
Bb6 {[%clk 0:00:07.9]} 70. Kg7 {[%clk 0:00:12]} 70... Ba7 {[%clk 0:00:08.2]} 71.
Bd5 {[%clk 0:00:11.9]} 71... Bb6 {[%clk 0:00:08.1]} 72. Be4 {[%clk 0:00:12.3]}
72... Ba7 {[%clk 0:00:08.3]} 73. Kg6 {[%clk 0:00:11.5]} 73... Bb6 {[%clk
0:00:08.6]} 74. Kh5 {[%clk 0:00:11.8]} 74... Ba7 {[%clk 0:00:09.1]} 75. Kg4
{[%clk 0:00:12.7]} 75... Bb6 {[%clk 0:00:09.6]} 76. Kf3 {[%clk 0:00:13.6]} 76...
Ba7 {[%clk 0:00:10.2]} 77. Ke3 {[%clk 0:00:14.5]} 77... Kd6 {[%clk 0:00:10.4]}
78. Kd3 {[%clk 0:00:15.4]} 78... Kc7 {[%clk 0:00:10.8]} 79. Bd5 {[%clk
0:00:15.9]} 79... Kd6 {[%clk 0:00:10.5]} 80. Bc6 {[%clk 0:00:16.2]} 80... Bb6
{[%clk 0:00:10.3]} 81. Ke4 {[%clk 0:00:16.4]} 81... Ba7 {[%clk 0:00:10.2]} 82.
Kd3 {[%clk 0:00:17]} 82... Bb6 {[%clk 0:00:10.7]} 83. Kc3 {[%clk 0:00:17.9]}
83... Ba7 {[%clk 0:00:11.1]} 84. Kb3 {[%clk 0:00:18.7]} 84... Kc7 {[%clk
0:00:10.8]} 85. Ka4 {[%clk 0:00:19.6]} 85... Kb6 {[%clk 0:00:11.2]} 86. Be8
{[%clk 0:00:18.4]} 86... Bb8 {[%clk 0:00:11.4]} 87. Kb3 {[%clk 0:00:18.1]} 87...
e4 {[%clk 0:00:10.9]} 88. Kc3 {[%clk 0:00:17.9]} 88... Be5+ {[%clk 0:00:10.1]}
89. Kd2 {[%clk 0:00:18.1]} 89... Bf4+ {[%clk 0:00:09.7]} 90. Ke2 {[%clk
0:00:17.8]} 90... e3 {[%clk 0:00:08.9]} 91. Bc6 {[%clk 0:00:18.2]} 91... Ka7
{[%clk 0:00:08.9]} 92. Bf3 {[%clk 0:00:15.5]} 92... Kb6 {[%clk 0:00:09.3]} 93.
Kd3 {[%clk 0:00:16]} 93... Ka7 {[%clk 0:00:09.4]} 94. Ke4 {[%clk 0:00:16.5]}
94... Kb6 {[%clk 0:00:08.4]} 95. Kd5 {[%clk 0:00:16.3]} 95... Be5 {[%clk
0:00:07.8]} 96. Ke6 {[%clk 0:00:16.2]} 96... Ka7 {[%clk 0:00:07.5]} 97. Kd7
{[%clk 0:00:16.2]} 97... Bd4 {[%clk 0:00:07.7]} 98. Kc6 {[%clk 0:00:15.6]} 98...
e2 {[%clk 0:00:07.9]} 99. Bxe2 {[%clk 0:00:15.2]} 99... Be3 {[%clk 0:00:07.9]}
100. b6+ {[%clk 0:00:15.2]} 100... Kxa6 {[%clk 0:00:08.2]} 101. b7 {[%clk
0:00:09.8]} 101... Ka7 {[%clk 0:00:06.3]} 102. Bf3 {[%clk 0:00:07.4]} 102... Bd4
{[%clk 0:00:05.9]} 103. Kc7 {[%clk 0:00:07.4]} 103... Be5+ {[%clk 0:00:05.9]}
104. Kc8 {[%clk 0:00:07.6]} 104... Bb8 {[%clk 0:00:05.6]} 105. Bc6 {[%clk
0:00:06.3]} 105... Be5 {[%clk 0:00:05.5]} 106. Bd5 {[%clk 0:00:06.6]} 106... Bb8
{[%clk 0:00:05.1]} 107. Kd7 {[%clk 0:00:05.7]} 107... Be5 {[%clk 0:00:05]} 108.
Kc6 {[%clk 0:00:06.1]} 108... Bd4 {[%clk 0:00:04.7]} 109. Kd7 {[%clk 0:00:05.4]}
109... Kb8 {[%clk 0:00:04.4]} 110. Ke7 {[%clk 0:00:06.3]} 110... Be5 {[%clk
0:00:04.2]} 111. Ke6 {[%clk 0:00:05.9]} 111... Kc7 {[%clk 0:00:04.3]} 112. Kf7
{[%clk 0:00:05.2]} 112... Bd4 {[%clk 0:00:04.5]} 113. Ke6 {[%clk 0:00:06.1]}
113... Be5 {[%clk 0:00:04.9]} 114. Be4 {[%clk 0:00:05.9]} 114... Bd4 {[%clk
0:00:04.7]} 115. Kd5 {[%clk 0:00:06.8]} 115... Be5 {[%clk 0:00:04.8]} 116. Kxc5
{[%clk 0:00:07.1]} 116... Bd6+ {[%clk 0:00:03.8]} 117. Kb5 {[%clk 0:00:06.9]}
117... Be5 {[%clk 0:00:04.1]} 118. c5 {[%clk 0:00:06.9]} 118... Bf4 {[%clk
0:00:04.1]} 119. Kc4 {[%clk 0:00:05.9]} 119... Be5 {[%clk 0:00:04.2]} 120. Kd5
{[%clk 0:00:06.7]} 120... Bf4 {[%clk 0:00:03.3]} 121. c6 {[%clk 0:00:07.1]}
121... Be5 {[%clk 0:00:03.3]} 122. Ke6 {[%clk 0:00:08]} 122... Kb8 {[%clk
0:00:01.7]} 123. Kd7 {[%clk 0:00:08.2]} 123... Bc7 {[%clk 0:00:01.2]} 124. Ke7
{[%clk 0:00:08.1]} 124... Be5 {[%clk 0:00:01.3]} 125. Kd7 {[%clk 0:00:08.7]}
125... Bf4 {[%clk 0:00:01]} 126. Bd5 {[%clk 0:00:09.6]} 126... Be5 {[%clk
0:00:01.3]} 127. Be6 {[%clk 0:00:10.1]} 127... Bf4 {[%clk 0:00:01.7]} 128. Ke7
{[%clk 0:00:10]} 128... Be5 {[%clk 0:00:02.4]} 129. Bc8 {[%clk 0:00:10.9]}
129... Bf4 {[%clk 0:00:02.5]} 130. Kd7 {[%clk 0:00:10.8]} 130... Be5 {[%clk
0:00:03.2]} 131. Ke6 {[%clk 0:00:10.9]} 131... Bd4 {[%clk 0:00:03]} 132. Bd7
{[%clk 0:00:11.1]} 132... Be5 {[%clk 0:00:03.4]} 133. Be8 {[%clk 0:00:10.8]}
133... Kc7 {[%clk 0:00:03.9]} 134. Bg6 {[%clk 0:00:11.6]} 134... Bd4 {[%clk
0:00:03.6]} 135. Be8 {[%clk 0:00:11]} 135... Be5 {[%clk 0:00:04]} 136. Kd5
{[%clk 0:00:11.5]} 136... Kb8 {[%clk 0:00:03.4]} 137. Kc5 {[%clk 0:00:12.4]}
137... Kc7 {[%clk 0:00:03.8]} 138. Kb5 {[%clk 0:00:12.8]} 138... Bf4 {[%clk
0:00:04]} 139. Ka6 {[%clk 0:00:12.6]} 139... Kb8 {[%clk 0:00:04]} 140. Kb6
{[%clk 0:00:13]} 140... Bc7+ {[%clk 0:00:04.4]} 141. Kc5 {[%clk 0:00:13.5]}
141... Be5 {[%clk 0:00:05.1]} 142. Kd5 {[%clk 0:00:14.3]} 142... Kc7 {[%clk
0:00:04.6]} 143. Ke6 {[%clk 0:00:14.7]} 143... Bd4 {[%clk 0:00:04.9]} 144. Ke7
{[%clk 0:00:07.5]} 144... Be5 {[%clk 0:00:04.3]} 145. Bd7 {[%clk 0:00:07.2]}
145... Bd4 {[%clk 0:00:04.3]} 146. Ke8 {[%clk 0:00:06.2]} 146... Be5 {[%clk
0:00:04.5]} 147. b8=Q+ {[%clk 0:00:06]} 147... Kxb8 {[%clk 0:00:04]} 148. Kd8
{[%clk 0:00:06.9]} 148... g4 {[%clk 0:00:04]} 149. Ke7 {[%clk 0:00:07.8]} 149...
gxh3 {[%clk 0:00:03.3]} 150. c7+ {[%clk 0:00:07.9]} 150... Kxc7 {[%clk 0:00:02]}
151. Be6 {[%clk 0:00:08.3]} 151... h2 {[%clk 0:00:01.7]} 152. Bd5 {[%clk
0:00:08.9]} 152... Kb6 {[%clk 0:00:01.8]} 153. Kf7 {[%clk 0:00:08.9]} 153... Kc5
{[%clk 0:00:02.2]} 154. Bh1 {[%clk 0:00:08.1]} 154... Kd4 {[%clk 0:00:02.8]}
155. Kg6 {[%clk 0:00:09]} 155... Ke3 {[%clk 0:00:01.5]} 156. Kh5 {[%clk
0:00:07.9]} 156... Kf2 {[%clk 0:00:01.6]} 157. Kxh4 {[%clk 0:00:08.8]} 157...
Kg1 {[%clk 0:00:01.4]} 158. Be4 {[%clk 0:00:09.4]} 158... h1=Q+ {[%clk
0:00:02.2]} 159. Bxh1 {[%clk 0:00:10.2]} 159... Kxh1 {[%clk 0:00:03]} 160. Kg4
{[%clk 0:00:10.6]} 160... Kg2 {[%clk 0:00:03.2]} 161. Kh5 {[%clk 0:00:10.1]}
161... Kf3 {[%clk 0:00:03.6]} 162. Kg6 {[%clk 0:00:11]} 162... Ke4 {[%clk
0:00:04]} 163. Kf7 {[%clk 0:00:11.4]} 163... Kxf5 {[%clk 0:00:04.7]} 0-1

[Event "Early-Titled-Tuesday-Blitz-July-09-2024"]
[Site "Chess.com"]
[Date "2024.07.09"]
[Round "5"]
[White "Nekoo04"]
[Black "Renatoforf"]
[Result "1-0"]
[WhiteElo "2384"]
[BlackElo "2125"]
[TimeControl "180+1"]
[EndTime "8:51:59 PDT"]
[Termination "Nekoo04 won by resignation"]

1. Nf3 {[%clk 0:03:00.9]} 1... Nf6 {[%clk 0:02:57.6]} 2. g3 {[%clk 0:03:00.4]}
2... g6 {[%clk 0:02:57.5]} 3. Bg2 {[%clk 0:03:01.1]} 3... Bg7 {[%clk 0:02:57.5]}
4. O-O {[%clk 0:03:02]} 4... O-O {[%clk 0:02:57.6]} 5. d4 {[%clk 0:03:02.9]}
5... d6 {[%clk 0:02:56]} 6. c4 {[%clk 0:03:03.8]} 6... Nc6 {[%clk 0:02:54.2]} 7.
Nc3 {[%clk 0:03:04.4]} 7... e5 {[%clk 0:02:52.3]} 8. dxe5 {[%clk 0:03:03.5]}
8... Nxe5 {[%clk 0:02:50.3]} 9. Nxe5 {[%clk 0:03:03]} 9... dxe5 {[%clk
0:02:49.3]} 10. Qxd8 {[%clk 0:03:03.6]} 10... Rxd8 {[%clk 0:02:48]} 11. Bg5
{[%clk 0:03:04.1]} 11... c6 {[%clk 0:02:39.7]} 12. Ne4 {[%clk 0:02:56.1]} 1-0

[Event "Early-Titled-Tuesday-Blitz-July-09-2024"]
[Site "Chess.com"]
[Date "2024.07.09"]
[Round "5"]
[White "AlexandraSamaganova"]
[Black "MikeWizard"]
[Result "1-0"]
[WhiteElo "2370"]
[BlackElo "2082"]
[TimeControl "180+1"]
[EndTime "8:53:12 PDT"]
[Termination "AlexandraSamaganova won by resignation"]

1. c4 {[%clk 0:03:00.9]} 1... Nf6 {[%clk 0:02:57.3]} 2. Nc3 {[%clk 0:03:00.7]}
2... g6 {[%clk 0:02:56.6]} 3. g3 {[%clk 0:03:00.5]} 3... Bg7 {[%clk 0:02:56]} 4.
Bg2 {[%clk 0:03:00.3]} 4... O-O {[%clk 0:02:55.9]} 5. e4 {[%clk 0:02:58.5]} 5...
d6 {[%clk 0:02:55.1]} 6. Nge2 {[%clk 0:02:58.2]} 6... c5 {[%clk 0:02:54.9]} 7.
O-O {[%clk 0:02:57.5]} 7... Nc6 {[%clk 0:02:54.7]} 8. d3 {[%clk 0:02:57.2]} 8...
Rb8 {[%clk 0:02:49.2]} 9. f4 {[%clk 0:02:53.6]} 9... Bg4 {[%clk 0:02:47.1]} 10.
h3 {[%clk 0:02:53.5]} 10... Bxe2 {[%clk 0:02:47]} 11. Nxe2 {[%clk 0:02:54.4]}
11... Qc8 {[%clk 0:02:41]} 12. a3 {[%clk 0:02:41.2]} 12... e5 {[%clk 0:02:28.4]}
13. f5 {[%clk 0:02:33.9]} 13... b5 {[%clk 0:02:25.5]} 14. cxb5 {[%clk
0:02:28.9]} 14... Rxb5 {[%clk 0:02:24.7]} 15. g4 {[%clk 0:02:29.4]} 15... Nd4
{[%clk 0:02:21.3]} 16. Nc3 {[%clk 0:02:28.4]} 16... h6 {[%clk 0:02:11.4]} 17.
Nxb5 {[%clk 0:02:24.4]} 17... Nxb5 {[%clk 0:02:10.3]} 18. fxg6 {[%clk
0:02:23.9]} 18... fxg6 {[%clk 0:02:09]} 19. Qb3+ {[%clk 0:02:23.7]} 19... c4
{[%clk 0:02:05.2]} 20. Qxb5 {[%clk 0:02:23.3]} 1-0

[Event "Early-Titled-Tuesday-Blitz-July-09-2024"]
[Site "Chess.com"]
[Date "2024.07.09"]
[Round "5"]
[White "isla88"]
[Black "elizabethcastaneda"]
[Result "1-0"]
[WhiteElo "2434"]
[BlackElo "2284"]
[TimeControl "180+1"]
[EndTime "8:53:20 PDT"]
[Termination "isla88 won by resignation"]

1. Nf3 {[%clk 0:03:00.9]} 1... Nf6 {[%clk 0:02:57.3]} 2. b3 {[%clk 0:03:01.1]}
2... g6 {[%clk 0:02:40.2]} 3. Bb2 {[%clk 0:03:00.9]} 3... Bg7 {[%clk 0:02:40.7]}
4. e3 {[%clk 0:03:00.7]} 4... O-O {[%clk 0:02:40.6]} 5. d4 {[%clk 0:03:01.3]}
5... d6 {[%clk 0:02:40.6]} 6. Be2 {[%clk 0:03:01.2]} 6... c5 {[%clk 0:02:39.1]}
7. O-O {[%clk 0:02:59.2]} 7... cxd4 {[%clk 0:02:38.5]} 8. Nxd4 {[%clk 0:02:59]}
8... Nc6 {[%clk 0:02:38.3]} 9. Nxc6 {[%clk 0:02:58.3]} 9... bxc6 {[%clk
0:02:38.3]} 10. c4 {[%clk 0:02:58.8]} 10... Qc7 {[%clk 0:02:35.5]} 11. Nc3
{[%clk 0:02:57.6]} 11... Bf5 {[%clk 0:02:34.4]} 12. Bf3 {[%clk 0:02:56.1]} 12...
Rab8 {[%clk 0:02:30.9]} 13. Rc1 {[%clk 0:02:54.9]} 13... Rfd8 {[%clk 0:02:26.5]}
14. Qe2 {[%clk 0:02:52.6]} 14... e5 {[%clk 0:02:24.9]} 15. g4 {[%clk 0:02:36.6]}
15... Be6 {[%clk 0:02:22.9]} 16. g5 {[%clk 0:02:29.7]} 16... Nd7 {[%clk
0:02:12]} 17. h4 {[%clk 0:02:29]} 17... a5 {[%clk 0:02:07.6]} 18. Nd5 {[%clk
0:02:24.8]} 18... Nc5 {[%clk 0:02:00.3]} 19. Nxc7 {[%clk 0:02:23.2]} 1-0

[Event "Early-Titled-Tuesday-Blitz-July-09-2024"]
[Site "Chess.com"]
[Date "2024.07.09"]
[Round "5"]
[White "IlanSchnaider"]
[Black "FARIZA2018"]
[Result "1-0"]
[WhiteElo "2843"]
[BlackElo "2633"]
[TimeControl "180+1"]
[EndTime "8:54:09 PDT"]
[Termination "IlanSchnaider won by resignation"]

1. e4 {[%clk 0:03:00.9]} 1... e5 {[%clk 0:03:00.2]} 2. Nf3 {[%clk 0:03:00.6]}
2... Nc6 {[%clk 0:03:00.6]} 3. d4 {[%clk 0:03:00.4]} 3... exd4 {[%clk
0:03:00.7]} 4. Bc4 {[%clk 0:03:00.6]} 4... Nf6 {[%clk 0:03:00.5]} 5. O-O {[%clk
0:03:00.6]} 5... Nxe4 {[%clk 0:03:00.6]} 6. Nc3 {[%clk 0:02:59.9]} 6... Nxc3
{[%clk 0:02:55.4]} 7. bxc3 {[%clk 0:02:59.1]} 7... d5 {[%clk 0:02:55.5]} 8. Bb5
{[%clk 0:02:58.5]} 8... dxc3 {[%clk 0:02:45.2]} 9. Re1+ {[%clk 0:02:58.4]} 9...
Be7 {[%clk 0:02:44.7]} 10. Nd4 {[%clk 0:02:40.3]} 10... Qd6 {[%clk 0:02:43.8]}
11. Nxc6 {[%clk 0:01:57.8]} 11... bxc6 {[%clk 0:02:43.1]} 12. Ba3 {[%clk
0:01:58.4]} 12... Qxa3 {[%clk 0:02:40.7]} 13. Bxc6+ {[%clk 0:01:58.8]} 13... Bd7
{[%clk 0:02:33.9]} 14. Bxa8 {[%clk 0:01:52.2]} 14... c6 {[%clk 0:02:32.8]} 15.
Qe2 {[%clk 0:01:43.5]} 15... f6 {[%clk 0:02:30.4]} 16. Rab1 {[%clk 0:01:39.2]}
16... Kf7 {[%clk 0:02:28.8]} 17. Bxc6 {[%clk 0:01:39.2]} 17... Qd6 {[%clk
0:02:19.4]} 18. Bxd5+ {[%clk 0:01:35.4]} 18... Qxd5 {[%clk 0:02:16.6]} 19. Qxe7+
{[%clk 0:01:35.3]} 19... Kg6 {[%clk 0:02:16.9]} 20. Rbd1 {[%clk 0:01:35.2]} 1-0

[Event "Early-Titled-Tuesday-Blitz-July-09-2024"]
[Site "Chess.com"]
[Date "2024.07.09"]
[Round "5"]
[White "Payyappat"]
[Black "campochess"]
[Result "1-0"]
[WhiteElo "2416"]
[BlackElo "2249"]
[TimeControl "180+1"]
[EndTime "8:54:31 PDT"]
[Termination "Payyappat won by resignation"]

1. e4 {[%clk 0:02:58.5]} 1... c5 {[%clk 0:02:59.7]} 2. Nf3 {[%clk 0:02:57.7]}
2... Nc6 {[%clk 0:02:59.6]} 3. d4 {[%clk 0:02:58.6]} 3... cxd4 {[%clk
0:02:59.4]} 4. Nxd4 {[%clk 0:02:59.5]} 4... e5 {[%clk 0:02:59.3]} 5. Nb5 {[%clk
0:02:59.6]} 5... a6 {[%clk 0:02:59.3]} 6. Nd6+ {[%clk 0:02:59.3]} 6... Bxd6
{[%clk 0:02:58.7]} 7. Qxd6 {[%clk 0:03:00.2]} 7... Qe7 {[%clk 0:02:57.3]} 8. Qd1
{[%clk 0:02:58.8]} 8... Nf6 {[%clk 0:02:56]} 9. Nc3 {[%clk 0:02:58.9]} 9... d6
{[%clk 0:02:55.9]} 10. Bg5 {[%clk 0:02:57.7]} 10... Be6 {[%clk 0:02:55.6]} 11.
Qd2 {[%clk 0:02:49.4]} 11... Rd8 {[%clk 0:02:54.8]} 12. O-O-O {[%clk 0:02:38.2]}
12... h6 {[%clk 0:02:54.5]} 13. Bxf6 {[%clk 0:02:36.6]} 13... Qxf6 {[%clk
0:02:52.6]} 14. Nd5 {[%clk 0:02:35.1]} 14... Bxd5 {[%clk 0:02:51.2]} 15. exd5
{[%clk 0:02:36]} 15... Ne7 {[%clk 0:02:48.3]} 16. h4 {[%clk 0:02:28.3]} 16...
O-O {[%clk 0:02:47.2]} 17. g4 {[%clk 0:02:27.3]} 17... Nc8 {[%clk 0:02:35.4]}
18. Bd3 {[%clk 0:02:24.7]} 18... Qe7 {[%clk 0:02:34.7]} 19. g5 {[%clk
0:02:24.3]} 19... h5 {[%clk 0:02:33.3]} 20. f4 {[%clk 0:02:13]} 20... exf4
{[%clk 0:02:30.9]} 21. Rde1 {[%clk 0:02:06.5]} 21... Qc7 {[%clk 0:02:30.1]} 22.
Qxf4 {[%clk 0:02:06]} 22... Nb6 {[%clk 0:02:28.4]} 23. g6 {[%clk 0:01:47.5]}
23... f6 {[%clk 0:02:21.8]} 24. Qf5 {[%clk 0:01:35.6]} 24... Rfe8 {[%clk
0:02:13.2]} 25. Qxh5 {[%clk 0:01:32]} 25... Re5 {[%clk 0:02:08.9]} 26. Qh7+
{[%clk 0:01:28.5]} 26... Kf8 {[%clk 0:02:08.9]} 27. Qh8+ {[%clk 0:01:25.1]} 1-0

[Event "Early-Titled-Tuesday-Blitz-July-09-2024"]
[Site "Chess.com"]
[Date "2024.07.09"]
[Round "5"]
[White "Mysterio47"]
[Black "Hudijegszid"]
[Result "1-0"]
[WhiteElo "2750"]
[BlackElo "2512"]
[TimeControl "180+1"]
[EndTime "8:54:46 PDT"]
[Termination "Mysterio47 won by resignation"]

1. e4 {[%clk 0:03:00.9]} 1... c6 {[%clk 0:02:55.7]} 2. d4 {[%clk 0:03:00.5]}
2... d5 {[%clk 0:02:45.2]} 3. e5 {[%clk 0:03:00.3]} 3... c5 {[%clk 0:02:43.5]}
4. c3 {[%clk 0:02:59.2]} 4... cxd4 {[%clk 0:02:42]} 5. cxd4 {[%clk 0:02:58.9]}
5... Nc6 {[%clk 0:02:42.6]} 6. Be2 {[%clk 0:02:52.9]} 6... Bf5 {[%clk
0:02:38.9]} 7. Nc3 {[%clk 0:02:45.6]} 7... e6 {[%clk 0:02:38.2]} 8. a3 {[%clk
0:02:42.3]} 8... Nge7 {[%clk 0:02:35.1]} 9. Nf3 {[%clk 0:02:40.4]} 9... h6
{[%clk 0:02:34.6]} 10. O-O {[%clk 0:02:40.5]} 10... Rc8 {[%clk 0:02:30.8]} 11.
Nb5 {[%clk 0:02:29.8]} 11... Ng6 {[%clk 0:02:22.2]} 12. Be3 {[%clk 0:02:27.6]}
12... Nh4 {[%clk 0:02:21.4]} 13. Nxh4 {[%clk 0:02:22.7]} 13... Qxh4 {[%clk
0:02:22.3]} 14. Qa4 {[%clk 0:02:14.7]} 14... a6 {[%clk 0:02:20.4]} 15. Na7
{[%clk 0:02:14.4]} 15... Rc7 {[%clk 0:02:12.8]} 16. Rac1 {[%clk 0:02:04.9]}
16... Be7 {[%clk 0:01:21]} 17. Nxc6 {[%clk 0:01:49.8]} 17... bxc6 {[%clk
0:01:21.2]} 18. Rxc6 {[%clk 0:01:45.1]} 18... Rxc6 {[%clk 0:01:13.4]} 19. Qxc6+
{[%clk 0:01:45.8]} 19... Kf8 {[%clk 0:01:11.4]} 20. g3 {[%clk 0:01:44.9]} 1-0

[Event "Early-Titled-Tuesday-Blitz-July-09-2024"]
[Site "Chess.com"]
[Date "2024.07.09"]
[Round "5"]
[White "WPWPWP-2015"]
[Black "pfalcon1949"]
[Result "1-0"]
[WhiteElo "2530"]
[BlackElo "1897"]
[TimeControl "180+1"]
[EndTime "8:54:49 PDT"]
[Termination "WPWPWP-2015 won by resignation"]

1. d4 {[%clk 0:03:00.9]} 1... d5 {[%clk 0:02:56.9]} 2. Nf3 {[%clk 0:03:00]} 2...
e6 {[%clk 0:02:57.3]} 3. c4 {[%clk 0:02:59.2]} 3... Nf6 {[%clk 0:02:57.7]} 4.
Nc3 {[%clk 0:02:58.6]} 4... Be7 {[%clk 0:02:58.2]} 5. Bf4 {[%clk 0:02:57.3]}
5... O-O {[%clk 0:02:58]} 6. Rc1 {[%clk 0:02:56.2]} 6... c5 {[%clk 0:02:58.3]}
7. cxd5 {[%clk 0:02:54.3]} 7... Nxd5 {[%clk 0:02:57.2]} 8. Nxd5 {[%clk 0:02:53]}
8... exd5 {[%clk 0:02:56.4]} 9. dxc5 {[%clk 0:02:52.9]} 9... Nc6 {[%clk
0:02:55.5]} 10. e3 {[%clk 0:02:51.1]} 10... Qa5+ {[%clk 0:02:51.6]} 11. Qd2
{[%clk 0:02:50.7]} 11... Qxa2 {[%clk 0:02:36.6]} 12. Bd3 {[%clk 0:02:49.8]}
12... Be6 {[%clk 0:02:28.2]} 13. O-O {[%clk 0:02:47.3]} 13... Qa5 {[%clk
0:02:28.1]} 14. Qxa5 {[%clk 0:02:43.1]} 14... Nxa5 {[%clk 0:02:27.2]} 15. b4
{[%clk 0:02:43.2]} 15... Nc4 {[%clk 0:02:17.4]} 16. Nd4 {[%clk 0:02:40.3]} 16...
a5 {[%clk 0:02:02.9]} 17. Nxe6 {[%clk 0:02:07.5]} 17... fxe6 {[%clk 0:02:03.8]}
18. Bxc4 {[%clk 0:02:07.5]} 18... dxc4 {[%clk 0:01:57]} 19. Rxc4 {[%clk
0:02:08.4]} 19... axb4 {[%clk 0:01:57.1]} 20. Rxb4 {[%clk 0:02:09]} 20... Bxc5
{[%clk 0:01:44.8]} 21. Rxb7 {[%clk 0:02:08.3]} 21... Ra2 {[%clk 0:01:44.6]} 22.
h4 {[%clk 0:02:04]} 22... Rd8 {[%clk 0:01:37.9]} 23. Be5 {[%clk 0:02:01.6]}
23... Bf8 {[%clk 0:01:34.7]} 24. Bd4 {[%clk 0:02:00.3]} 24... Rda8 {[%clk
0:01:28.3]} 25. Rc1 {[%clk 0:01:57.3]} 25... R2a7 {[%clk 0:01:22.9]} 26. Bxa7
{[%clk 0:01:55]} 26... Rxa7 {[%clk 0:01:23.8]} 27. Rxa7 {[%clk 0:01:54.6]} 1-0